bitfinex/quotes_ETHUSD_20240811
["timestamp","ask_amount","ask_price","bid_price","bid_amount"]
[1723407083270,0.07783644,2568.2,2566.2,7.6236]
[1723407083271,2.72724,2566.7,2566.2,7.6236]
[1723407083533,2.72579,2568.1,2567.2,7.6236]
[1723407083837,0.07783644,2568.0,2567.3,0.0778866]
[1723407083983,3.0,2568.5,2567.2,7.6236]
[1723407083984,2.72619,2567.7,2567.2,7.6236]
[1723407084190,2.72603,2567.9,2567.2,7.6236]
[1723407084191,2.7261,2567.8,2567.2,7.6236]
[1723407084502,3.0,2568.5,2567.3,0.07788742]
[1723407084686,2.72599,2567.9,2567.2,8.658643]
[1723407084888,2.72577,2568.1,2567.2,8.658643]
[1723407085119,0.07783644,2568.6,2567.2,7.6236]
[1723407085295,2.72585,2568.1,2567.2,10.35023]
[1723407085687,2.72584,2568.1,2567.2,10.35023]
[1723407085891,2.72603,2567.9,2567.2,10.35023]
[1723407086090,0.40472555,2568.7,2567.2,8.93131]
[1723407086290,2.72533,2568.5,2567.7,2.7261]
[1723407086516,7.8811,2568.4,2567.3,0.07786526]
[1723407086733,2.72641,2567.5,2566.7,2.72714]
[1723407086937,2.72681,2567.1,2566.3,10.35118]
[1723407087150,3.925,2568.6,2565.7,7.6236]
[1723407087151,5.4551,2566.4,2565.7,7.6236]
[1723407087448,0.07783644,2567.0,2565.7,7.6236]
[1723407087805,2.7263,2567.6,2566.4,7.6236]
[1723407088002,7.8811,2568.3,2566.5,0.84025794]
[1723407088003,2.7268,2567.2,2566.5,0.84025794]
[1723407088206,2.72633,2567.6,2566.7,2.72716]
[1723407088416,2.72618,2567.7,2566.9,2.72692]
[1723407088618,2.72598,2567.9,2567.0,0.07788968]
[1723407088840,2.72622,2567.7,2567.1,0.07788851]
[1723407089042,2.72656,2567.4,2566.5,6.21711]
[1723407089245,2.72656,2567.4,2566.6,1.934071]
[1723407089455,2.72658,2567.4,2566.6,1.934071]
[1723407089649,2.72632,2567.6,2566.6,1.934071]
[1723407089808,2.72594,2568.0,2567.2,7.743]
[1723407090007,2.72547,2568.4,2567.3,0.07788305]
[1723407090238,2.72533,2568.5,2567.3,0.85997136]
[1723407090417,2.72555,2568.3,2567.5,2.72631]
[1723407090618,0.07783644,2568.2,2567.2,7.743]
[1723407090910,2.72608,2567.8,2566.7,7.743]
[1723407091142,2.72658,2567.4,2566.7,8.49926468]
[1723407091324,2.72616,2567.8,2566.9,2.72692]
[1723407091508,2.72616,2567.8,2567.0,0.07789215]
[1723407091509,2.72629,2567.6,2567.0,0.07789215]
[1723407091713,2.72629,2567.6,2566.7,11.22645468]
[1723407091947,2.72656,2567.4,2566.7,11.22645468]
[1723407092248,2.72656,2567.4,2566.7,8.49926468]
[1723407092459,0.07783644,2567.9,2565.8,6.6531]
[1723407092460,2.72688,2567.1,2566.2,7.743]
[1723407092751,2.72704,2566.9,2566.2,7.743]
[1723407092906,2.72719,2566.8,2566.2,7.743]
[1723407093103,0.07783644,2566.7,2565.7,7.743]
[1723407093360,5.72643,2567.5,2564.7,0.1]
[1723407093361,2.72848,2565.6,2565.2,7.743]
[1723407093501,2.72823,2565.8,2565.3,0.07795094]
[1723407093706,2.72823,2565.8,2565.2,7.743]
[1723407093907,2.72823,2565.8,2564.9,2.72908]
[1723407094108,2.7278,2566.2,2564.5,2.72947]
[1723407094354,2.72851,2565.5,2564.6,1.047247]
[1723407094545,2.72862,2565.4,2564.7,2.72926]
[1723407094738,2.72862,2565.4,2564.7,0.6506037]
[1723407094941,2.72862,2565.4,2564.7,3.3798737]
[1723407095118,5.45692,2565.6,2564.8,0.07795901]
[1723407095462,2.72844,2565.6,2564.8,0.07795901]
[1723407095628,2.72902,2565.1,2564.4,7.743]
[1723407095817,4.125,2566.7,2564.4,7.743]
[1723407095818,2.72856,2565.5,2564.5,0.07796927]
[1723407096019,2.72785,2566.2,2564.5,2.72949]
[1723407096020,2.7288,2565.3,2564.5,2.72949]
[1723407096369,2.72903,2565.1,2564.4,7.743]
[1723407096516,2.72916,2564.9,2564.4,7.743]
[1723407096717,2.72857,2565.5,2564.1,0.1235917]
[1723407096718,2.72933,2564.8,2564.1,0.1235917]
[1723407096952,2.72857,2565.5,2564.1,0.1235917]
[1723407096953,2.72897,2565.1,2564.1,0.1235917]
[1723407097158,2.72925,2564.8,2564.1,2.8535117]
[1723407097464,5.80648644,2565.4,2564.1,2.8535117]
[1723407097465,2.72923,2564.9,2564.1,0.1235917]
[1723407097664,2.72943,2564.7,2564.1,0.1235917]
[1723407097955,2.72915,2564.9,2564.1,2.8535817]
[1723407098313,3.0,2565.4,2564.1,2.8535817]
[1723407098314,2.72851,2565.5,2564.2,2.80782564]
[1723407098513,2.72851,2565.5,2564.1,1.45626887]
[1723407098514,2.72922,2564.9,2564.3,0.07795998]
[1723407098715,2.72922,2564.9,2564.1,0.1235917]
[1723407099167,2.72887,2565.2,2564.1,2.8535117]
[1723407099319,2.72913,2565.0,2564.3,2.7297]
[1723407099658,0.07783644,2565.4,2564.1,2.8535517]
[1723407099659,2.72957,2564.6,2564.1,0.1235917]
[1723407099863,0.07783644,2564.9,2564.1,0.1235917]
[1723407100017,2.72977,2564.4,2564.1,0.1235917]
[1723407100716,5.45978,2564.2,2564.1,0.1235917]
[1723407101156,2.72972,2564.4,2564.1,0.1235917]
[1723407101362,2.72951,2564.6,2564.1,0.1235917]
[1723407101529,2.72967,2564.5,2564.1,0.1235917]
[1723407101719,2.72941,2564.7,2564.1,0.1235917]
[1723407101916,2.72989,2564.2,2564.1,0.1235917]
[1723407102225,2.72941,2564.7,2564.1,0.1235917]
[1723407102552,2.72919,2564.9,2564.2,0.07798693]
[1723407102769,2.72837,2565.7,2564.9,2.72908]
[1723407102918,7.7376,2566.1,2564.9,2.72908]
[1723407102919,0.07783644,2565.8,2564.9,0.07795676]
[1723407103119,2.72875,2565.3,2564.9,0.07795676]
[1723407103321,2.72896,2565.1,2564.3,7.743]
[1723407103662,2.72932,2564.8,2564.3,7.743]
[1723407104157,2.72841,2565.6,2564.1,0.1235917]
[1723407104158,2.72959,2564.5,2564.1,0.1235917]
[1723407104345,2.72927,2564.8,2564.2,0.07798341]
[1723407104546,10.46551,2566.1,2564.3,0.07797839]
[1723407104751,2.72886,2565.2,2564.4,0.07797541]
[1723407104951,0.07783644,2565.6,2564.4,0.07797541]
[1723407105151,3.0,2566.0,2564.5,0.0779714]
[1723407105152,2.72915,2564.9,2564.5,0.0779714]
[1723407105461,2.72957,2564.5,2564.1,0.1235917]
[1723407105847,2.72989,2564.2,2564.1,0.1235917]
[1723407106046,5.45978,2564.2,2564.1,0.1235917]
[1723407106255,2.72989,2564.2,2564.1,0.1235917]
[1723407106436,5.45978,2564.2,2564.1,0.1235917]
[1723407106623,10.91956,2564.2,2564.1,1.7e-06]
[1723407106950,5.45978,2564.2,2564.1,1.7e-06]
[1723407107624,2.72971,2564.4,2564.1,1.7e-06]
[1723407107820,2.72959,2564.5,2564.1,1.7e-06]
[1723407108126,2.72966,2564.5,2564.1,1.7e-06]
[1723407108353,2.72912,2565.0,2564.1,1.7e-06]
[1723407108539,2.72926,2564.8,2564.1,1.7e-06]
[1723407108838,3.13339871,2565.4,2564.6,2.72937]
[1723407109024,3.13339871,2565.4,2564.2,7.7981]
[1723407109025,2.72863,2565.4,2564.3,0.07796502]
[1723407109222,2.72917,2564.9,2564.2,7.7981]
[1723407109458,0.40464297,2565.5,2564.2,7.7981]
[1723407109459,0.40464297,2565.5,2564.3,0.07798422]
[1723407109681,2.72948,2564.6,2564.2,7.7981]
[1723407110267,0.07783644,2565.0,2564.2,7.7981]
[1723407110446,0.07783644,2565.0,2564.1,1.7e-06]
[1723407110447,0.07783644,2565.0,2564.1,2.7299717]
[1723407110784,2.72871,2565.4,2564.3,7.7981]
[1723407110986,3.13319297,2565.5,2564.4,0.07796374]
[1723407111190,2.72845,2565.6,2564.9,2.72913]
[1723407111485,8.1218,2566.3,2565.0,0.07795615]
[1723407111486,2.72831,2565.7,2565.0,0.07795615]
[1723407111637,2.72852,2565.5,2565.0,0.07795615]
[1723407112051,2.72881,2565.3,2564.4,3.50949]
[1723407112247,2.72898,2565.1,2564.3,7.7981]
[1723407112459,2.7288,2565.3,2564.4,0.07797021]
[1723407112675,5.45713,2565.5,2564.7,2.7293]
[1723407112858,2.72854,2565.5,2564.8,0.07796347]
[1723407113064,2.72921,2564.9,2564.3,7.7981]
[1723407113329,2.72935,2564.8,2564.3,7.7981]
[1723407113448,2.72907,2565.0,2564.3,10.52787]
[1723407113849,2.7284,2565.6,2564.3,10.52788]
[1723407114066,2.72932,2564.8,2564.3,7.7981]
[1723407114668,2.72916,2564.9,2564.3,7.7981]
[1723407114853,2.72849,2565.6,2564.7,2.72926]
[1723407115200,2.72863,2565.4,2564.8,0.07796164]
[1723407115357,2.72873,2565.3,2564.8,0.07796164]
[1723407115679,2.72863,2565.4,2564.8,0.07796164]
[1723407115883,2.72895,2565.1,2564.4,2.72964]
[1723407116189,2.72879,2565.3,2564.5,0.07796926]
[1723407116369,2.72894,2565.1,2564.5,0.07796926]
[1723407116563,2.72894,2565.1,2564.3,7.7981]
[1723407116564,2.72915,2564.9,2564.3,7.7981]
[1723407116770,2.72939,2564.7,2563.8,2.73023]
[1723407116969,2.72964,2564.5,2563.8,2.73031]
[1723407117185,2.72978,2564.4,2563.7,10.52851]
[1723407117357,2.72951,2564.6,2563.8,2.80820358]
[1723407117556,2.72924,2564.9,2564.2,2.72983]
[1723407117758,2.72904,2565.0,2564.3,0.07797844]
[1723407117957,2.72904,2565.0,2564.3,2.80769844]
[1723407118183,2.72927,2564.8,2564.3,0.07797844]
[1723407118397,5.4586,2564.8,2564.3,0.07797844]
[1723407118558,3.0,2565.6,2564.1,2.7299717]
[1723407118559,5.72946,2564.7,2564.2,0.07797867]
[1723407118907,5.72946,2564.7,2564.1,1.7e-06]
[1723407118908,2.72954,2564.6,2564.1,1.7e-06]
[1723407119209,2.72957,2564.6,2564.1,1.7e-06]
[1723407119503,2.72971,2564.4,2564.1,1.7e-06]
[1723407119660,2.72957,2564.5,2564.1,1.7e-06]
[1723407119999,2.72911,2565.0,2564.1,1.7e-06]
[1723407120000,2.72913,2565.0,2564.1,1.7e-06]
[1723407120208,0.19592553,2564.8,2564.6,2.72938]
[1723407120377,2.72895,2565.1,2564.7,0.07796627]
[1723407120572,2.72876,2565.3,2564.6,0.0779678]
[1723407120573,2.72873,2565.3,2564.6,0.0779678]
[1723407120899,2.7289,2565.2,2564.6,1.06055678]
[1723407121211,0.07783644,2565.6,2564.1,1.7e-06]
[1723407121212,0.07783644,2565.1,2564.1,1.7e-06]
[1723407121364,5.45978,2564.2,2564.1,1.7e-06]
[1723407121701,2.72925,2564.8,2563.5,0.005]
[1723407121702,2.73051,2563.7,2563.5,0.005]
[1723407121899,6.34691991,2564.6,2563.5,0.005]
[1723407121900,2.73053,2563.6,2563.5,0.005]
[1723407122208,2.72997,2564.2,2563.6,7.7981]
[1723407122513,2.73003,2564.1,2563.6,7.7481]
[1723407122662,2.73029,2563.9,2563.6,7.7481]
[1723407122855,3.61737991,2564.5,2563.6,7.7481]
[1723407122856,2.73018,2564.0,2563.6,7.7481]
[1723407123396,2.73003,2564.1,2563.6,7.7481]
[1723407123604,3.61737991,2564.4,2563.6,8.81137624]
[1723407123812,2.72924,2564.9,2564.1,2.72993]
[1723407123992,2.72924,2564.9,2564.2,0.07797963]
[1723407124306,2.72844,2565.6,2564.3,2.72976]
[1723407124506,6.34696831,2565.4,2564.4,0.07797049]
[1723407124655,6.34696831,2565.4,2563.7,6.61200762]
[1723407124656,2.72858,2565.5,2564.5,2.72954]
[1723407124859,2.72858,2565.5,2564.5,2.72949]
[1723407124860,2.72873,2565.3,2564.5,2.72949]
[1723407125104,0.07783644,2565.2,2564.1,2.7299]
[1723407125295,2.72887,2565.2,2564.2,0.27299]
[1723407125456,2.72949,2564.6,2563.8,7.7981]
[1723407125663,2.73033,2563.8,2563.5,0.005]
[1723407126108,2.73053,2563.6,2563.5,0.005]
[1723407126256,5.46106,2563.6,2563.5,0.005]
[1723407126461,2.73053,2563.6,2563.5,0.005]
[1723407126661,4.22947858,2564.1,2563.5,0.005]
[1723407126905,2.73033,2563.8,2563.5,0.08300888]
[1723407127204,2.80788644,2564.1,2563.5,0.005]
[1723407127391,2.73053,2563.6,2563.5,0.005]
[1723407127977,5.53889644,2563.6,2563.5,0.005]
[1723407128334,10.92256,2563.5,2563.4,2.36e-06]
[1723407128511,11.80439795,2563.5,2562.5,5.05050505]
[1723407128660,2.7316,2562.6,2562.5,5.05050505]
[1723407128863,3.61600255,2563.7,2563.0,2.73111]
[1723407129092,2.73029,2563.9,2563.0,2.73111]
[1723407129276,2.72991,2564.2,2563.6,7.4918]
[1723407129597,3.34083485,2564.4,2563.7,2.80835305]
[1723407129796,3.34083485,2564.4,2563.6,7.4918]
[1723407129797,2.72971,2564.4,2563.8,0.07799386]
[1723407129999,2.72948,2564.6,2563.8,0.07799386]
[1723407130205,0.61102615,2565.0,2563.8,0.07799386]
[1723407130414,0.40436512,2565.1,2564.2,7.4918]
[1723407130610,0.40436512,2565.1,2564.7,2.72936]
[1723407130835,2.82615872,2565.4,2564.8,7.4918]
[1723407131110,4.23050832,2566.0,2564.8,7.4918]
[1723407131111,2.72843,2565.6,2564.8,10.29893898]
[1723407131470,0.61080101,2566.0,2564.8,10.29893898]
[1723407131471,2.72809,2565.9,2564.8,10.29896898]
[1723407131671,2.72862,2565.4,2564.8,8.5216939]
[1723407131897,2.72843,2565.6,2564.8,7.4918]
[1723407132138,3.33879101,2566.0,2564.9,0.07795846]
[1723407132409,3.33879101,2566.0,2565.1,2.72884]
[1723407132605,2.72822,2565.8,2565.2,0.07794675]
[1723407132904,2.72799,2566.0,2565.3,0.07794764]
[1723407133317,2.72788,2566.1,2565.3,0.07794764]
[1723407133467,2.72795,2566.1,2565.3,2.72862]
[1723407133665,0.09742638,2566.4,2565.4,0.07793941]
[1723407133872,2.72808,2566.0,2565.4,0.07793941]
[1723407134072,2.72778,2566.2,2565.4,0.07793941]
[1723407134383,2.72762,2566.4,2565.5,2.72842]
[1723407134679,2.72777,2566.2,2565.6,0.07793792]
[1723407134882,0.61056883,2566.8,2565.8,7.4918]
[1723407135078,6.75230125,2567.1,2565.8,7.4918]
[1723407135079,2.72702,2566.9,2566.1,2.7278]
[1723407135316,2.72655,2567.4,2566.6,2.72726]
[1723407135482,0.61044829,2567.5,2566.3,7.4918]
[1723407135679,2.72698,2567.0,2566.3,7.4918]
[1723407135913,2.72734,2566.6,2566.3,7.4918]
[1723407136119,2.72713,2566.8,2566.3,7.4918]
[1723407136445,2.72669,2567.3,2566.4,0.07791801]
[1723407136650,0.61036854,2567.6,2566.5,7.4918]
[1723407136833,1.1501238,2568.9,2567.0,7.4918]
[1723407136834,3.62238367,2568.9,2567.0,7.4918]
[1723407137146,2.72483,2569.0,2567.0,7.4918]
[1723407137147,2.72566,2568.2,2567.1,2.80469565]
[1723407137360,0.40427457,2568.6,2567.4,2.72639]
[1723407137361,2.72544,2568.4,2567.4,2.72639]
[1723407137504,3.61995353,2569.1,2567.6,2.72628]
[1723407137505,2.72512,2568.7,2567.6,2.72628]
[1723407137702,2.72577,2568.1,2567.5,7.4918]
[1723407138245,2.72623,2567.7,2567.5,7.4918]
[1723407138457,3.925,2568.7,2566.8,7.4918]
[1723407138643,11.174,2568.5,2566.3,7.4918]
[1723407138821,2.72735,2566.6,2566.3,7.4918]
[1723407139017,2.72735,2566.6,2564.8,2.72915]
[1723407139018,2.72844,2565.6,2565.0,7.4918]
[1723407139276,2.728,2566.0,2565.2,0.26511152]
[1723407139419,10.71185,2567.1,2565.3,0.07794372]
[1723407139420,2.72729,2566.7,2565.3,0.07794372]
[1723407139622,2.72729,2566.7,2565.0,7.4918]
[1723407139623,2.728,2566.0,2565.0,7.4918]
[1723407139857,3.03045473,2566.6,2565.0,7.4918]
[1723407139858,2.75853473,2565.9,2565.0,7.4918]
[1723407140059,2.72831,2565.7,2565.0,7.4918]
[1723407140356,2.72876,2565.3,2565.0,7.4918]
[1723407140656,2.72869,2565.4,2565.0,7.4918]
[1723407140866,2.72878,2565.3,2565.0,7.4918]
[1723407141153,2.75859473,2565.9,2565.0,7.4918]
[1723407141521,2.72862,2565.4,2565.0,7.4918]
[1723407141921,2.72836,2565.7,2565.1,0.07796079]
[1723407142231,2.72812,2565.9,2565.1,0.07796079]
[1723407142433,2.72838,2565.7,2565.1,0.07796079]
[1723407143020,2.72809,2565.9,2565.1,2.80689079]
[1723407143359,2.72782,2566.2,2565.1,2.80687079]
[1723407143571,2.72807,2566.0,2565.1,2.80689079]
[1723407143783,2.72819,2565.8,2565.1,0.07796079]
[1723407144261,2.72819,2565.8,2565.0,7.4918]
[1723407144262,0.03045473,2565.9,2565.0,7.4918]
[1723407144436,2.72835,2565.7,2565.0,7.4918]
[1723407144630,2.7281,2565.9,2565.1,2.80680288]
[1723407145044,2.7277,2566.3,2565.5,2.72849]
[1723407145246,2.72777,2566.2,2565.6,0.07793395]
[1723407145471,2.72777,2566.2,2565.1,2.7289]
[1723407145673,0.03045473,2567.0,2565.1,1.294981]
[1723407145674,2.72759,2566.4,2565.1,1.294981]
[1723407145843,2.72823,2565.8,2565.0,7.4918]
[1723407146046,2.72848,2565.6,2565.0,7.4918]
[1723407146256,2.72876,2565.3,2565.0,7.4918]
[1723407146578,2.7299,2564.2,2563.5,7.4918]
[1723407146735,2.72919,2564.9,2563.5,7.4918]
[1723407146736,2.73022,2563.9,2563.5,7.4918]
[1723407147288,2.73022,2563.9,2562.3,0.25023313]
[1723407147289,2.73023,2563.9,2563.1,2.73104]
[1723407147441,2.73048,2563.7,2562.9,10.22307]
[1723407147637,2.73048,2563.7,2562.9,7.4918]
[1723407147638,2.73053,2563.6,2562.9,7.4918]
[1723407147859,2.73048,2563.7,2562.9,11.245385]
[1723407148161,2.73105,2563.2,2562.9,7.4918]
[1723407148363,2.73047,2563.7,2562.5,5.05050505]
[1723407148364,2.73151,2562.7,2562.5,5.05050505]
[1723407148889,2.73052,2563.7,2562.7,2.73141]
[1723407149182,0.03045473,2564.1,2563.0,8.0967]
[1723407149388,0.03045473,2564.1,2563.1,0.07801355]
[1723407149389,2.73043,2563.7,2563.1,0.07801355]
[1723407149540,2.73023,2563.9,2563.2,0.07801355]
[1723407149740,2.73044,2563.7,2563.0,8.0967]
[1723407149948,2.73044,2563.7,2563.0,9.2068031]
[1723407150174,0.03045473,2564.1,2563.0,9.2068031]
[1723407150175,2.76048473,2564.1,2563.1,2.73105]
[1723407150472,2.73088,2563.3,2563.0,8.0967]
[1723407150694,0.61114619,2564.2,2562.5,5.05050505]
[1723407150695,0.03045473,2563.2,2562.5,5.05050505]
[1723407150837,2.73138,2562.9,2562.5,5.05050505]
[1723407151093,0.03045473,2563.2,2562.5,5.05050505]
[1723407151345,10.974,2563.9,2562.5,5.05050505]
[1723407151346,2.7316,2562.6,2562.5,5.05050505]
[1723407151523,8.1948,2562.6,2562.5,5.05050505]
[1723407151711,5.4632,2562.6,2562.5,5.05050505]
[1723407152095,2.73138,2562.8,2562.5,5.05050505]
[1723407152335,2.73074,2563.5,2562.6,0.07803977]
[1723407152642,2.73041,2563.8,2562.5,5.05050505]
[1723407152643,0.03045473,2563.4,2562.5,5.05050505]
[1723407152995,5.4632,2562.6,2562.5,5.05050505]
[1723407153228,18.9004,2562.6,2562.5,5.05050505]
[1723407153534,8.19543,2562.4,2562.3,2.5e-07]
[1723407153743,11.19543,2562.4,2562.3,2.5e-07]
[1723407154043,5.46362,2562.4,2562.3,2.5e-07]
[1723407154239,2.73159,2562.7,2562.3,2.5e-07]
[1723407154240,0.03045473,2562.5,2562.3,2.5e-07]
[1723407154395,2.73181,2562.4,2562.3,2.5e-07]
[1723407154595,5.46362,2562.4,2562.3,2.5e-07]
[1723407154803,2.73181,2562.4,2562.3,2.5e-07]
[1723407155332,2.73179,2562.5,2562.3,2.5e-07]
[1723407155535,2.73151,2562.7,2562.3,2.5e-07]
[1723407155735,2.73162,2562.6,2562.3,2.5e-07]
[1723407155922,2.73136,2562.9,2562.3,2.5e-07]
[1723407156304,3.13472344,2563.5,2562.3,0.07803554]
[1723407156305,2.73096,2563.2,2562.3,0.07803554]
[1723407156622,3.13472344,2563.5,2562.3,0.07803554]
[1723407156623,2.73165,2562.6,2562.3,2.5e-07]
[1723407156805,4.32903344,2563.5,2562.3,2.5e-07]
[1723407156806,2.73181,2562.4,2562.3,2.5e-07]
[1723407157506,4.32903344,2563.5,2562.3,2.5e-07]
[1723407157735,2.73152,2562.7,2562.3,2.5e-07]
[1723407158501,2.73181,2562.4,2562.3,2.5e-07]
[1723407158703,2.73173,2562.5,2562.3,2.5e-07]
[1723407159003,0.03045473,2563.4,2562.3,2.5e-07]
[1723407159004,2.73139,2562.8,2562.3,2.5e-07]
[1723407159336,5.46362,2562.4,2562.3,2.5e-07]
[1723407160803,3.925,2563.4,2562.3,2.5e-07]
[1723407160804,0.40403344,2563.5,2562.3,2.5e-07]
[1723407161007,3.13467344,2563.5,2562.6,2.7315]
[1723407161244,3.13467344,2563.5,2562.3,2.5e-07]
[1723407161245,0.40403344,2563.5,2563.2,2.73088]
[1723407161416,0.40403344,2563.5,2563.3,8.17470579]
[1723407161613,2.72954,2564.6,2563.4,2.73074]
[1723407161614,2.72975,2564.4,2563.4,2.73074]
[1723407161852,2.72984,2564.3,2563.4,1.09054458]
[1723407162040,2.72984,2564.3,2563.5,0.07799213]
[1723407162454,2.72949,2564.6,2563.8,2.7303]
[1723407162661,2.72936,2564.7,2563.5,1.19959767]
[1723407162662,0.03045473,2564.7,2563.5,1.19959767]
[1723407162856,0.03045473,2564.7,2563.3,8.0967]
[1723407162857,2.73013,2564.0,2563.3,8.0967]
[1723407163058,2.73042,2563.7,2563.3,8.0967]
[1723407163757,2.73053,2563.6,2563.3,8.0967]
[1723407163956,2.73028,2563.9,2563.3,8.0967]
[1723407164144,2.73017,2564.0,2563.3,8.90637]
[1723407164345,0.03045473,2564.6,2563.3,8.90637]
[1723407164562,2.73007,2564.1,2562.8,8.0967]
[1723407164763,2.7304,2563.8,2563.1,2.73106]
[1723407165056,2.72977,2564.4,2562.3,8.09670025]
[1723407165057,2.73124,2563.0,2562.3,8.09670025]
[1723407165247,2.73126,2563.0,2562.3,8.09670025]
[1723407165454,2.73064,2563.5,2562.3,8.09670025]
[1723407165455,0.03045473,2563.4,2562.3,8.09670025]
[1723407165653,0.03045473,2563.8,2562.3,8.09670025]
[1723407165823,3.62,2564.2,2562.9,2.73119]
[1723407165824,0.03045473,2564.1,2562.9,2.73119]
[1723407166020,2.73028,2563.9,2562.8,8.0967]
[1723407166220,2.73023,2563.9,2562.9,2.73121]
[1723407166417,2.7305,2563.7,2563.0,1.082791]
[1723407166621,2.73009,2564.1,2563.1,0.07801039]
[1723407166869,2.72961,2564.5,2563.6,8.0967]
[1723407167034,0.43462526,2564.9,2563.6,8.0967]
[1723407167357,2.73039,2563.8,2563.1,8.0967]
[1723407167559,5.46081,2563.8,2563.1,8.0967]
[1723407167760,2.73039,2563.8,2563.1,9.452604]
[1723407168260,2.73062,2563.6,2563.1,9.452604]
[1723407168860,2.73044,2563.7,2563.1,9.452604]
[1723407169038,7.9169,2564.0,2562.3,2.5e-07]
[1723407169220,2.73073,2563.5,2562.4,8.2074]
[1723407169421,0.03045473,2563.5,2562.4,8.2074]
[1723407169780,2.73114,2563.1,2562.4,9.02814002]
[1723407169978,2.73118,2563.0,2562.4,8.2074]
[1723407170144,2.73114,2563.1,2562.4,8.2074]
[1723407170343,2.73018,2564.0,2562.7,2.7314]
[1723407170669,6.62,2564.2,2562.4,11.03915]
[1723407170670,2.73046,2563.7,2562.4,11.03915]
[1723407170869,2.73046,2563.7,2562.9,2.73119]
[1723407171383,2.73046,2563.7,2563.0,2.73116]
[1723407171572,2.73046,2563.7,2563.1,0.07801103]
[1723407171771,2.73096,2563.2,2562.5,0.82074002]
[1723407171977,2.73132,2562.9,2562.4,8.2074]
[1723407172174,2.73075,2563.4,2562.7,2.73142]
[1723407172366,0.03045473,2563.8,2562.7,2.7314]
[1723407172367,2.7306,2563.6,2562.7,2.7314]
[1723407172560,2.73077,2563.4,2562.7,2.7314]
[1723407172764,2.73077,2563.4,2562.7,0.546306]
[1723407172983,0.61105215,2564.4,2563.7,10.93772]
[1723407173186,2.72965,2564.5,2563.8,2.80821728]
[1723407173652,2.7294,2564.7,2563.8,0.07798728]
[1723407173852,2.72919,2564.9,2564.1,2.72999]
[1723407174051,2.72919,2564.9,2564.2,0.07797714]
[1723407174250,2.72919,2564.9,2564.1,2.72993]
[1723407174251,2.72926,2564.8,2564.3,0.0779771]
[1723407174473,5.45842,2564.9,2564.3,0.0779771]
[1723407174787,3.13279262,2565.4,2564.5,2.72949]
[1723407174788,2.72877,2565.3,2564.5,2.72949]
[1723407174996,0.40417262,2565.4,2564.6,0.07796527]
[1723407175152,2.72884,2565.2,2564.6,2.72942]
[1723407175352,2.7287,2565.4,2564.7,0.07796451]
[1723407175565,2.72845,2565.6,2564.7,0.07796451]
[1723407175566,5.45694,2565.6,2564.7,0.07796451]
[1723407175748,2.72845,2565.6,2564.8,2.72924]
[1723407176111,2.7289,2565.2,2564.4,11.75775]
[1723407176273,2.7289,2565.2,2564.4,10.93701]
[1723407176474,2.7289,2565.2,2564.4,10.93699]
[1723407176671,2.72864,2565.4,2564.6,2.72944]
[1723407177008,6.34543391,2566.5,2564.4,10.93699]
[1723407177009,2.72893,2565.1,2564.4,10.93699]
[1723407177222,2.72885,2565.2,2564.5,2.72956]
[1723407177375,2.72885,2565.2,2564.5,2.80752711]
[1723407177576,2.72885,2565.2,2564.6,2.72946]
[1723407177772,2.72866,2565.4,2564.6,2.72946]
[1723407177976,2.72866,2565.4,2564.4,8.74328404]
[1723407178196,2.72923,2564.9,2564.4,8.2074]
[1723407178495,0.61076667,2566.2,2564.4,10.93703]
[1723407178496,2.72841,2565.6,2564.4,10.93703]
[1723407178828,2.72894,2565.1,2564.4,8.2074]
[1723407179116,2.72935,2564.8,2564.4,8.2074]
[1723407179324,5.4587,2564.8,2564.4,8.2074]
[1723407179530,2.72935,2564.8,2564.4,8.2074]
[1723407179816,2.72935,2564.8,2563.4,8.2074]
[1723407179817,2.73011,2564.0,2563.4,8.2074]
[1723407180001,0.03045473,2564.7,2563.4,8.2074]
[1723407180002,2.72992,2564.2,2563.4,8.2074]
[1723407180203,2.72991,2564.2,2563.5,2.73055]
[1723407180502,2.72952,2564.6,2563.7,2.73036]
[1723407180704,2.72952,2564.6,2563.9,2.73014]
[1723407181021,2.72938,2564.7,2563.9,2.7302]
[1723407181252,2.72949,2564.6,2563.9,2.73013]
[1723407181465,2.72907,2565.0,2563.9,0.546053]
[1723407181646,2.72907,2565.0,2564.3,8.2074]
[1723407181830,2.7289,2565.2,2564.4,0.07797086]
[1723407182031,2.72864,2565.4,2564.4,0.07797086]
[1723407182032,2.72864,2565.4,2564.7,2.72927]
[1723407182363,2.72831,2565.7,2565.0,2.72896]
[1723407182544,0.61076667,2566.2,2565.1,8.2074]
[1723407182545,2.72811,2565.9,2565.1,8.2074]
[1723407182754,2.72883,2565.2,2565.1,8.2074]
[1723407182920,2.72847,2565.6,2564.0,8.2074]
[1723407183125,0.61076667,2566.2,2564.0,8.2074]
[1723407183126,0.61076667,2566.2,2565.2,2.72881]
[1723407183359,0.61076667,2566.2,2565.1,8.2074]
[1723407183660,2.72852,2565.5,2565.1,8.2074]
[1723407183971,5.45736,2565.4,2565.1,8.2074]
[1723407184258,2.72842,2565.6,2565.1,8.2074]
[1723407185368,2.7286,2565.5,2565.1,8.2074]
[1723407185524,2.72844,2565.6,2565.1,8.2074]
[1723407186025,5.45732,2565.4,2565.1,8.2074]
[1723407186244,0.03045473,2565.3,2564.2,8.2074]
[1723407186465,2.72907,2565.0,2564.3,2.7297]
[1723407186776,0.03045473,2565.4,2564.2,8.2074]
[1723407186976,2.72943,2564.7,2564.2,8.2074]
[1723407187671,2.72947,2564.6,2564.2,8.2074]
[1723407187826,2.72943,2564.7,2564.2,8.2074]
[1723407187827,2.72957,2564.5,2564.2,8.2074]
[1723407188265,2.72978,2564.3,2564.2,8.2074]
[1723407188467,5.45884,2564.7,2564.2,8.2074]
[1723407188693,2.72939,2564.7,2564.2,8.2074]
[1723407189299,0.03045473,2565.0,2564.2,8.2074]